Cogmind - Beta 15 @@@ ROGUE MODE // 2025.06.29 @ 04:27:50 Player: Peregrine Result: Destroyed by BE-R40(R) with Subdweller Machine Gun Performance ------------- Evolutions (0) 0 Regions Visited (3) 600 Robots Destroyed (15) 75 Value Destroyed (246) 246 Prototype IDs (2) 40 Alien Tech Used (0) 0 Bonus (-26) -26 TOTAL SCORE: 935 Bonus ------- Friendly Fire -26 Cogmind --------- Core Integrity 0/250 Matter 300/300 Energy 70/100 System Corruption 12% Temperature Cool (0) Movement Rolling (105) Location -10/Subcaves Parts ------- > --- POWER (1) -------- (None) > --- PROPULSION (2) --- Compact Wheel Subdweller Monowheel > --- UTILITY (2) ------ Small Storage Unit > --- WEAPON (2) ------- Subdweller Beam Cannon Makeshift Sword > --- INVENTORY (8) ---- Spiked Treads Aluminum Leg Large Storage Unit Makeshift Light Armor Plating Scrap Shield Makeshift System Restoration Module Scrap Shield Fragment (47) Peak State ------------ > --- POWER ------------ (None) > --- PROPULSION ------- Compact Wheel Subdweller Monowheel > --- UTILITY ---------- Small Storage Unit > --- WEAPON ----------- Subdweller Beam Cannon Makeshift Sword > --- INVENTORY -------- Aluminum Leg Large Storage Unit Scrap Shield Makeshift System Restoration Module [Rating: 11] Favorites ----------- Power Ion Engine Engine Ion Engine Propulsion Aluminum Leg Leg Aluminum Leg Wheel Compact Wheel Utility Small Storage Unit Storage Small Storage Unit Hackware Hacking Suite Weapon Assault Rifle Energy Gun Medium Laser Energy Cannon Subdweller Beam Cannon Ballistic Gun Assault Rifle Ballistic Cannon Light Cannon Slashing Weapon Makeshift Sword Build | -11 -10 -10 -10 ------- Run | Yrd Mat Min Sub Slots Evolved . | . . . . Power . | . . . . Propulsion . | . . . . Utility . | . . . . Weapon . | . . . . Parts Attached 16 | . 4 8 4 Power 1 | . . 1 . Engine 1 | . . 1 . Core . | . . . . Reactor . | . . . . Propulsion 7 | . 2 3 2 Treads . | . . . . Leg 5 | . 2 3 . Wheel 2 | . . . 2 Hover . | . . . . Flight . | . . . . Utility 3 | . 1 2 . Device . | . . . . Storage 2 | . . 2 . Processor . | . . . . Hackware 1 | . 1 . . Protection . | . . . . Artifact . | . . . . Weapon 5 | . 1 2 2 Energy Gun . | . . . . Energy Cannon 1 | . . . 1 Ballistic Gun 2 | . . 2 . Ballistic Cannon 1 | . 1 . . Launcher . | . . . . Special Weapon . | . . . . Impact Weapon . | . . . . Slashing Weapon 1 | . . . 1 Piercing Weapon . | . . . . Special Melee Weapon . | . . . . Unidentified Prototypes . | . . . . Parts Lost 9 | . . 5 4 Power 1 | . . . 1 Propulsion 3 | . . 1 2 Utility 1 | . . 1 . Weapon 4 | . . 3 1 Highest Loss Streak 5 | . . 5 3 To Critical Strikes . | . . . . Average Backups 5 | 6 7 5 4 Power . | 1 1 . . Propulsion 2 | 4 4 3 1 Utility 1 | . . . 2 Weapon . | 1 1 . . Tool/Special . | . . . . Unused Backups 6 | . . 2 4 Power 2 | . . 2 . Propulsion 1 | . . . 1 Utility 3 | . . . 3 Weapon . | . . . . Tool/Special . | . . . . Average Slot Usage (%) 72 | . 91 84 58 Engine 6 | . 14 14 . Leg 13 | . 28 28 1 Wheel 10 | . . . 20 Storage 14 | . 14 14 14 Hackware 3 | . 6 7 . Energy Gun 1 | . 4 . . Energy Cannon 3 | . . . 6 Ballistic Gun 10 | . 14 14 7 Ballistic Cannon 3 | . 9 5 . Slashing Weapon 3 | . . . 7 Peak Build Rating 11 | 6 9 9 11 Average Rating 7 | 6 7 6 7 On Entrance 6 | 6 6 9 5 Naked Turns . | . . . . Heaviest Build 29 | 13 14 29 15 Greatest Support 36 | 20 20 20 36 Greatest Overweight (x) 1 | . . 1 1 Average Overweight (x) . | . . . . Largest Inventory Capacity 15 | 8 8 15 8 Average Capacity 8 | 8 8 8 8 Most Carried 9 | 6 8 9 8 Average Carried 5 | 5 7 5 5 Final Capacity 8 | 8 8 8 8 Final Carried 8 | 4 8 3 8 Class Distribution -------------------- 100% | Mutant Dominant Class ---------------- Mutant | -10/Materials Mutant | -10/Mines Mutant | -10/Subcaves Resources | -11 -10 -10 -10 ----------- Run | Yrd Mat Min Sub Matter Collected 593 | 200 155 30 208 Remotely . | . . . . Salvage Created 390 | . 260 25 105 Parts 27 | . 24 . 3 Haulers Intercepted 2 | . 2 . . Recyclers Shooed . | . . . . Parts Field Recycled . | . . . . Retrieved Matter . | . . . . Parts Self-Destructed 2 | . . . 2 Prevented . | . . . . Kills | -11 -10 -10 -10 ------- Run | Yrd Mat Min Sub Combat Hostiles Destroyed 11 | . 7 2 2 Guns 7 | . 4 2 1 Cannons 4 | . 3 . 1 Classes Destroyed 9 | . 6 1 2 Builder 1 | . 1 . . Hauler 2 | . 2 . . Operator 1 | . 1 . . Watcher 2 | . 2 . . Swarmer 6 | . 6 . . Grunt 1 | . 1 . . Sentry 1 | . . . 1 Subdweller 1 | . . . 1 Assembled 2 | . . 2 . Best Kill Streak 6 | . 6 2 1 Combat Bots Only 3 | . 3 2 1 Max Kills in Single Turn 1 | . 1 1 1 Gunslinging . | . . . . Exploded . | . . . . Melee . | . . . . Uniques/NPCs Destroyed . | . . . . Combat | -11 -10 -10 -10 -------- Run | Yrd Mat Min Sub Hostile Shots Fired 94 | . 14 46 34 Missed 28 | . 5 13 10 Hits 66 | . 9 33 24 Melee 9 | . . 9 . Projectile 57 | . 9 24 24 AOE 5 | . . 5 . Critical Strikes 2 | . . 1 1 Damage Taken 1271 | . 80 700 491 Core 252 | . . 99 153 Absorbed by Shields . | . . . . Core Remaining (%) 100 | 100 . . . Volleys Fired 70 | . 31 15 24 Largest 2 | . 2 2 1 Hottest 80 | . 70 50 80 Shots Fired 111 | . 62 23 26 Gun 80 | . 41 22 17 Cannon 31 | . 21 1 9 Launcher . | . . . . Special . | . . . . Kinetic 92 | . 52 23 17 Thermal 19 | . 10 . 9 Explosive . | . . . . Electromagnetic . | . . . . Robot Hit Streak 6 | . 3 4 6 Robot Miss Streak 4 | . 3 4 1 Penetration Max . | . . . . Secondary Targets . | . . . . Shots Hit Robots 55 | . 23 11 21 Core Hits 23 | . 13 6 4 Critical Kills . | . . . . Critical Parts Destroyed 1 | . . . 1 Critical Strikes 2 | . 1 . 1 Destroy 1 | . . . 1 Blast 1 | . 1 . . Melee Attacks . | . . . . Impact . | . . . . Slashing . | . . . . Piercing . | . . . . Sneak Attacks . | . . . . Combat Hostiles . | . . . . Follow-up Attacks . | . . . . Damage Inflicted 839 | . 328 135 376 Guns 450 | . 131 133 186 Cannons 387 | . 197 . 190 Explosions . | . . . . Melee . | . . . . Ramming 2 | . . 2 . Kinetic 583 | . 264 133 186 Thermal 254 | . 64 . 190 Explosive . | . . . . Electromagnetic . | . . . . Impact . | . . . . Slashing . | . . . . Piercing . | . . . . Highest Corruption 12 | . . 12 12 Average Corruption 11 | . . 11 12 Corruption Purged . | . . . . Corruption Blocked . | . . . . Effects 35 | . . 7 28 Message Errors 9 | . . 1 8 Matter Fused 7 | . . 2 5 Heat Flow Errors 3 | . . . 3 Energy Discharges 4 | . . 1 3 Parts Fused 1 | . . . 1 Data Loss (minor) 3 | . . 1 2 Data Loss (major) 3 | . . 1 2 Misfires 3 | . . 1 2 Alerts 1 | . . . 1 Misdirections 1 | . . . 1 Overload Shots . | . . . . Overflow Damage . | . . . . Projectiles . | . . . . Explosions . | . . . . Melee . | . . . . Knockbacks 1 | . 1 . . Impact . | . . . . Kinetic 1 | . 1 . . Secondary . | . . . . Self-Inflicted Damage . | . . . . Shots . | . . . . Rammed . | . . . . Targets Rammed 1 | . . 1 . Kicked 1 | . . 1 . Crushed . | . . . . Highest Temperature 252 | . 80 10 252 Average Temperature 30 | . 19 7 111 Received Heat Transfer 110 | . . 20 90 Siege Activations . | . . . . Martial Activations . | . . . . Shielding Activations . | . . . . Robots Disrupted . | . . . . Combat Hostiles . | . . . . Robots Corrupted . | . . . . Combat Hostiles . | . . . . Parts Fried . | . . . . Impact Corruptions . | . . . . Robots Melted . | . . . . Combat Hostiles . | . . . . Parts Melted . | . . . . Heat Transferred 444 | . 185 . 259 Parts Sabotaged . | . . . . Parts Stolen . | . . . . Parts Stripped . | . . . . Power Chain Reactions . | . . . . Alert | -11 -10 -10 -10 ------- Run | Yrd Mat Min Sub Maximum Alert Level . | . . . . Low Security (%) 100 | 100 100 100 . Level 1 . | . . . . Level 2 . | . . . . Level 3 . | . . . . Level 4 . | . . . . Level 5 . | . . . . High Security . | . . . . Max Security . | . . . . Peak Influence 107 | . 107 28 . Initial 28 | . . 28 . Average 20 | . 35 3 . Influence Increases 233 | . 213 . 20 Destroy 0b10 Robot/C 160 | . 140 . 20 Destroy 0b10 Robot/NC 30 | . 30 . . Destroy Leader 28 | . 28 . . Disable Machine 15 | . 15 . . Influence Decreases 233 | . 139 74 20 Entered New Map 46 | . . 46 . Time Decay 177 | . 139 28 10 Lost Part 10 | . . . 10 Squads Dispatched 1 | . 1 . . Investigation . | . . . . Extermination . | . . . . Reinforcement 1 | . 1 . . Assault . | . . . . Garrison . | . . . . Intercept . | . . . . Searches Triggered . | . . . . Construction Impeded . | . . . . Haulers Reinforced . | . . . . Active Scanning Responses . | . . . . Cargo Convoy Interrupts . | . . . . Stealth | -11 -10 -10 -10 --------- Run | Yrd Mat Min Sub Distress Signals 4 | . 4 . . Communications Jammed . | . . . . Distress Signals . | . . . . Times Spotted 38 | . 11 22 5 Peak Tracking Total 21 | . 4 21 2 Tactical Retreats 4 | . . 4 . Traps | -11 -10 -10 -10 ------- Run | Yrd Mat Min Sub Traps Triggered . | . . . . Indirectly . | . . . . Trap Hack Attempts . | . . . . Triggered . | . . . . Disarmed . | . . . . Reprogrammed . | . . . . Reused . | . . . . Traps Extracted . | . . . . Installed . | . . . . Triggered . | . . . . Machines | -11 -10 -10 -10 ---------- Run | Yrd Mat Min Sub Machines Disabled 1 | . 1 . . Max in Single Turn 1 | . 1 . . Machines Repaired . | . . . . Machines Dismantled . | . . . . Machines Sabotaged . | . . . . Overloaded Fab Kills . | . . . . Hacking | -11 -10 -10 -10 --------- Run | Yrd Mat Min Sub Machines Accessed 2 | . 2 . . Terminals 2 | . 2 . . Fabricators . | . . . . Repair Stations . | . . . . Recycling Units . | . . . . Scanalyzers . | . . . . Garrison Access . | . . . . Total Hacks 5 | . 5 . . Successful 2 | . 2 . . Failed 3 | . 3 . . Catastrophic . | . . . . Database Lockouts . | . . . . Manual 1 | . 1 . . Terminals 5 | . 5 . . Fabricators . | . . . . Repair Stations . | . . . . Recycling Units . | . . . . Scanalyzers . | . . . . Garrison Access . | . . . . Terminal Hacks 1 | . 1 . . Prototype ID Bank 1 | . 1 . . Fabricator Hacks . | . . . . Repair Station Hacks . | . . . . Recycling Unit Hacks . | . . . . Scanalyzer . | . . . . Garrison Access Hacks . | . . . . Unauthorized Hacks 1 | . 1 . . Terminals 1 | . 1 . . Botnet 1 | . 1 . . Fabricators . | . . . . Repair Stations . | . . . . Recycling Units . | . . . . Scanalyzers . | . . . . Garrison Access . | . . . . Data Cores Recovered . | . . . . Used . | . . . . Hacking Detections 2 | . 2 . . Full Trace Events 1 | . 1 . . Feedback Events . | . . . . Feedback Blocked . | . . . . Robot Schematics Acquired . | . . . . Robots Built . | . . . . Authchips . | . . . . Time . | . . . . Total Robot Build Rating . | . . . . Part Schematics Acquired . | . . . . Parts Built . | . . . . Authchips . | . . . . Time . | . . . . Total Part Build Rating . | . . . . Parts Repaired . | . . . . Time . | . . . . Parts Recycled . | . . . . Recycled Matter . | . . . . Retrieved Matter . | . . . . Retrieved Components . | . . . . Parts Scanalyzed . | . . . . Part Schematics Acquired . | . . . . Parts Damaged . | . . . . Bothacking | -11 -10 -10 -10 ------------ Run | Yrd Mat Min Sub Used RIF Installer . | . . . . Robots Hacked . | . . . . Non-combat . | . . . . Combat . | . . . . Robot Hacks Applied . | . . . . Relay Couplers Released . | . . . . Fabnet Peak Effective % . | . . . . Robots Rewired . | . . . . Allies Hacked . | . . . . Hacks Repelled . | . . . . Allies | -11 -10 -10 -10 -------- Run | Yrd Mat Min Sub Total Allies . | . . . . Largest Group . | . . . . Highest-Rated Group . | . . . . Highest-Rated Ally . | . . . . Total Orders . | . . . . Ally Attacks . | . . . . Total Damage . | . . . . Kills . | . . . . Allies Corrupted . | . . . . Allies Melted . | . . . . Intel | -11 -10 -10 -10 ------- Run | Yrd Mat Min Sub Active Infowar (turns) . | . . . . Robot Analysis Total . | . . . . Derelict Logs Recovered 1 | . . . 1 Drone Launches . | . . . . Drone Recoveries . | . . . . Exploration | -11 -10 -10 -10 ------------- Run | Yrd Mat Min Sub Turns Passed 1416 | 11 342 287 776 Spaces Moved 929 | 7 184 196 542 Core . | . . . . Treads . | . . . . Legs 417 | 7 184 196 30 Wheels 512 | . . . 512 Hover . | . . . . Flight . | . . . . Fastest Speed 100 | 120 120 120 100 Average Speed 111 | 120 120 121 104 Slowest Speed 190 | 120 120 190 190 Overloaded Moves . | . . . . Propulsion Burnouts . | . . . . Robots Hopped . | . . . . Potential Cave-ins . | . . . . Cave-ins Triggered . | . . . . Exploration Rate (%) 34 | 2 51 56 30 Regions Visited 3 Branch Regions 2 Pre-discovered Areas 1 | . . . 1 Known Exits Taken . | . . . . Unknown Exits Taken 3 | 1 1 1 . Scrap Searched 5 | . . 1 4 Spaces Dug . | . . . . Terrain Destroyed 2 | . . . 2 Melee . | . . . . Projectile 2 | . . . 2 AOE . | . . . . Terrain Rammed . | . . . . Walls Destroyed . | . . . . Machines Disabled . | . . . . Actions | -11 -10 -10 -10 --------- Run | Yrd Mat Min Sub Total 1213 | 10 248 225 730 Wait 179 | 2 25 . 152 Move 926 | 6 183 195 542 Hop . | . . . . Pick Up 13 | . 4 1 8 Fast Attach 2 | . 2 . . Attach 8 | . . 4 4 Detach 1 | . . 1 . Swap 7 | . 2 5 . Drop 6 | 2 1 3 . Fire 70 | . 31 15 24 Melee . | . . . . Ram . | . . . . Kick 1 | . . 1 . Crush . | . . . . Escape Stasis . | . . . . Rewire . | . . . . Trap . | . . . . Miscellaneous . | . . . . Route ------- -11/Scrapyard -10/Materials -10/Mines -10/Subcaves History --------- Turn | Location | Event 3 | -11/Scrapyard | Discovered new exit (range 3) 12 | -11/Scrapyard | Entered Materials 320 | -10/Materials | Build established: Mutant 330 | -10/Materials | Discovered new exit (range 16) 354 | -10/Materials | Entered Mines 421 | -10/Mines | Assembled infested the area 502 | -10/Mines | System corruption reached 10% 532 | -10/Mines | Lost 5 parts (1n1u3w) 629 | -10/Mines | Discovered new exit (range 9) 641 | -10/Mines | Entered Subcaves 642 | -10/Subcaves | Approached by a straggling Scientist 708 | -10/Subcaves | Core integrity fell below 50% 729 | -10/Subcaves | Lost 3 parts (1p2n) 968 | -10/Subcaves | Shifting Twisted Machinery released Mak. Sword 1005 | -10/Subcaves | Learned location of Recycling (-8) 1021 | -10/Subcaves | Disturbed a concealed Subdweller 1030 | -10/Subcaves | Core integrity fell below 20% 1199 | -10/Subcaves | Curiously followed by a Cobbler waking with a query about "LVR3C" 1417 | -10/Subcaves | Destroyed by BE-R40(R) with Subdweller Machine Gun Last Messages --------------- M8-N8R(c): "I think it's somewhere east of here" 01204_ XEK40ROFKP M2R>SKBG#>1M4U2X AIRXTLEQWJB 01219_ Acquired 5 matter. 01221_ F4-6DO(O) collects matter. 01224_ GLXDXK/RWYDRM:06HNBQCPTWWC5HEL4E 01226_ F4-6DO(O) collects matter. M8-N8R(c): "We're getting close, I can feel it." 01254_ F4-6DO(O) puts together Sub. Machine Gun. 01261_ F4-6DO(O) collects matter. 01274_ WDPGX>YHQXRFSCIILVI6Q7RT XJO#VBK6GI> M8-N8R(c): "I think it's somewhere northeast of here" 01310_ System corrupted: Heat flow error (+179). 01326_ System corrupted: Energy discharge (-28). 01353_ System corrupted: Substantial component data lost. M8-N8R(c): "I think it's somewhere east of here" 01368_ System corrupted: Component data lost. 01388_ System corrupted: Heat flow error (+297). 01403_ 4L#3 L/R3JOM1A M8-N8R(c): "I think it's somewhere southeast of here" 01410_ BE-R40(R) angrily emerges from the Twisted Machinery. Map ----- +----------------------------------------------------+ | | | | | | | | | | | | | | | | | ?????????????????????????????????????????????????? | | ?????????????????????????????????????????????????? | | ?????????????????????????????????????????????????? | | ?????????????????????????????????????????????????? | | ?????????????????????????????????????????????????? | | ?????????????????????????????????????????????????? | | ?????????????????????????????????????????????????? | | ?????????????????????????????????????????????????? | | ?????????????????????????????????????????????????? | | ?????????????????????????????????????????????????? | | ?????????????????????????????????????????????????? | | ??????????????????????????###????????????????????? | | ??????????????????????????<&?????????????????????? | | ?????????????????????????? ##????????????????????? | | ??????????????????????#### ##???????????????????? | | ?????????????????????## R# <#????? ????????? | | ?????###????????????## ; ## # #???????? | | ????## #######?##### @< < #????????? | | ????# ### ## #????????????? | | ??##?# c ### #????????????? | | ??# ## ### ##?# #???????????? | | ??# ????# ##??# ?????????? | | ???# ###### ##???# ## ## ????????? | | ???# ## #????###?# ##?????????????? | | ????# #?????????# ##??????????????? | | ????## #??????????####???????????????? | | ?????# ##?????????????????????????????? | | ?????# % ##??????????????????????????????? | | ??#### ##???????????????????????????????? | | ?## #### ##????????????????????????????????? | | ?# ###? ###?????????????????????????????????? | | ?## # ## #??????????????????????????????????? | | ??### ##??????????????????????????????????? | | ???#% ## ##???????????????????????????????????? | | ???## #####?????????????????????????????????????? | | ???## ###??????????????????????????????????????? | | ???# # ####???????????????????????????????????? | | ##### #???????????????????????????????????? | | #####?###???????????????????????????? | | # #### ### #???????????????????????????? | | ## ### ## #???????????????####????????? | | ## #?# ######????????### ##???????? | +----------------------------------------------------+ Best States ------------- Heat Dissipation 25 Energy Generation 10 Energy Capacity 250 Matter Stores 300 Matter Capacity 300 Sight Range 16 Terrain Scan Density 10 Evasion (%) 55 Offensive Hacking 10 Item Schematics ----------------- None Robot Schematics ------------------ None Fabricated ------------ Nothing Repaired ---------- Nothing Alien Tech Used ----------------- None Achievements -------------- None Challenges ------------ None Game ------ Seed HybridGreatArray Manual? 0 Play Time 00:15:03 Cumulative 119.9 hours Start 2025.06.29 @ 04:14:37 End 2025.06.29 @ 04:27:50 Sessions 1 Manual Loads 0 Difficulty Rogue Special Mode None Game No. 146 Rogue 131 Adventurer 15 Explorer 0 Win Type - Total 4 Types 3/0/1/0/0/0/0/0/0/0 Lore% 38 Gallery% 60 Achievement% 55 Wizard Run 0 Options --------- Layout 0 ASCII 0 Keyboard 0 Movement Mouse Keybinds 0 Fullscreen 2 Font 36/Smallcaps Map View 76x50 Zoom Use 0% Tactical HUD 1 Map Filters NONE Filters NONE Steam 1 RUN: 490f3a10-5760-47d6-a390-45e24a1702f9